bitfinex-derivatives/quotes_BTCF0:USTF0_20210706
["timestamp","ask_amount","ask_price","bid_price","bid_amount"]
[1625584310226,0.23227544,33890.0,33888.0,0.35607]
[1625584310586,0.23227544,33890.0,33889.0,0.00401936]
[1625584311427,0.24057544,33894.0,33889.0,0.48517024]
[1625584311848,0.24057544,33894.0,33890.0,0.00401939]
[1625584313472,0.24057544,33894.0,33893.0,0.24057544]
[1625584313592,1.37276949,33894.0,33893.0,0.24057544]
[1625584314854,2.66459469,33894.0,33893.0,0.24057544]
[1625584315336,2.67974985,33894.0,33893.0,0.24057544]
[1625584315639,2.66459469,33894.0,33893.0,0.24057544]
[1625584315998,2.66459469,33894.0,33893.0,0.32817544]
[1625584316118,2.66459469,33894.0,33893.0,0.24057544]
[1625584317141,2.66459469,33894.0,33893.0,0.33017544]
[1625584317381,2.66459469,33894.0,33893.0,0.24057544]
[1625584322127,2.66459469,33894.0,33889.0,0.50188544]
[1625584322308,1.13061292,33891.0,33889.0,0.50188544]
[1625584322850,0.24057544,33894.0,33889.0,0.50188544]
[1625584322851,1.13083306,33892.0,33889.0,0.50188544]
[1625584323508,1.13083306,33892.0,33890.0,0.00401415]
[1625584323630,1.13083306,33892.0,33891.0,0.24057544]
[1625584324591,1.12942545,33893.0,33891.0,0.24057544]
[1625584324709,1.12942545,33893.0,33892.0,0.0895]
[1625584326033,0.24057544,33894.0,33892.0,0.0895]
[1625584326152,0.24057544,33894.0,33892.0,0.09351365]
[1625584326272,0.13087544,33894.0,33892.0,0.09351365]
[1625584326392,0.12777544,33894.0,33892.0,0.09351365]
[1625584326515,0.12777544,33894.0,33892.0,0.0895]
[1625584326634,1.53514623,33897.0,33892.0,0.0895]
[1625584326754,1.53514623,33897.0,33893.0,0.00401348]
[1625584326996,1.53514623,33897.0,33894.0,1.0]
[1625584327115,1.2953059,33899.0,33894.0,1.0]
[1625584327235,1.2953059,33899.0,33897.0,4.1005]
[1625584327355,1.29557443,33900.0,33897.0,4.3653]
[1625584327595,1.29557443,33900.0,33899.0,0.48115088]
[1625584328319,1.29620308,33901.0,33899.0,0.48115088]
[1625584328496,1.10420308,33901.0,33899.0,0.48115088]
[1625584328796,1.45786992,33906.0,33899.0,0.48115088]
[1625584329036,1.45774522,33905.0,33899.0,0.48115088]
[1625584329276,1.45785903,33906.0,33899.0,0.48115088]
[1625584329517,1.45821924,33905.0,33899.0,0.48115088]
[1625584329635,1.45821924,33905.0,33904.0,0.53475544]
[1625584329877,1.28531924,33905.0,33904.0,0.53475544]
[1625584329998,0.24057544,33909.0,33904.0,0.53475544]
[1625584330358,0.19757544,33909.0,33904.0,0.53475544]
[1625584330481,0.24057544,33912.0,33904.0,0.53475544]
[1625584330484,0.23415088,33912.0,33904.0,0.53475544]
[1625584330600,0.24057544,33916.0,33904.0,1.53475544]
[1625584330720,0.24057544,33916.0,33904.0,1.62325544]
[1625584330840,0.24057544,33916.0,33905.0,1.0]
[1625584330962,1.62253307,33918.0,33905.0,1.0]
[1625584331198,1.62253307,33918.0,33905.0,1.0887]
[1625584331321,0.01514133,33917.0,33906.0,1.0]
[1625584331558,1.62324086,33919.0,33916.0,0.72172632]
[1625584331682,1.86435229,33920.0,33916.0,0.93514632]
[1625584332040,0.01514065,33919.0,33916.0,0.93514632]
[1625584332280,0.24057544,33920.0,33916.0,0.93514632]
[1625584332761,0.24057544,33925.0,33916.0,0.93514632]
[1625584332763,1.62214564,33924.0,33916.0,0.93514632]
[1625584333002,0.24057544,33925.0,33916.0,0.93514632]
[1625584333003,1.86361045,33925.0,33916.0,0.93514632]
[1625584333242,0.24057544,33925.0,33917.0,0.0871]
[1625584333601,0.24057544,33925.0,33924.0,0.48115088]
[1625584333721,0.24057544,33925.0,33924.0,0.82970088]
[1625584333962,0.24057544,33925.0,33924.0,0.48134665]
[1625584334083,0.24057544,33925.0,33924.0,0.34855]
[1625584334322,1.86277035,33925.0,33924.0,0.34855]
[1625584334504,0.24057544,33925.0,33924.0,0.34855]
[1625584334623,0.2557082,33925.0,33924.0,0.34855]
[1625584334743,1.87615256,33925.0,33916.0,0.48115088]
[1625584334984,1.8610198,33925.0,33916.0,0.48115088]
[1625584335104,3.6998,33924.0,33916.0,0.48115088]
[1625584335223,1.8610198,33925.0,33916.0,0.48115088]
[1625584335464,1.62000311,33924.0,33916.0,0.48115088]
[1625584335585,0.24057544,33917.0,33916.0,0.48115088]
[1625584336363,0.24057544,33917.0,33911.0,0.0886]
[1625584336845,0.24057544,33917.0,33909.0,0.24057544]
[1625584337565,0.48115088,33910.0,33909.0,0.24057544]
[1625584339848,1.45122729,33910.0,33909.0,0.24057544]
[1625584340392,1.45122729,33910.0,33909.0,0.32997544]
[1625584340630,1.45122729,33910.0,33909.0,0.24057544]
[1625584340749,0.48115088,33910.0,33909.0,0.24057544]
[1625584341289,1.45131266,33910.0,33909.0,0.24057544]
[1625584341535,1.45131266,33910.0,33905.0,0.24057544]
[1625584341653,0.50395544,33906.0,33905.0,0.24057544]
[1625584341772,1.47244398,33906.0,33905.0,0.24057544]
[1625584342133,6.05144398,33906.0,33905.0,0.24057544]
[1625584342375,6.05144398,33906.0,33902.0,0.24057544]
[1625584342736,0.96773577,33903.0,33902.0,0.24057544]
[1625584342854,0.96773577,33903.0,33898.0,0.24057544]
[1625584343218,0.32273225,33899.0,33898.0,0.24057544]
[1625584343336,0.57177225,33899.0,33898.0,0.24057544]
[1625584343581,1.05292313,33899.0,33898.0,0.24057544]
[1625584344422,0.73019088,33899.0,33898.0,0.24057544]
[1625584344539,0.48115088,33899.0,33898.0,0.24057544]
[1625584348810,0.48115088,33899.0,33898.0,0.51058544]
[1625584355906,0.48115088,33899.0,33898.0,0.51460877]
[1625584368110,0.64331505,33899.0,33898.0,0.51460877]
[1625584368471,0.48115088,33899.0,33898.0,0.51460877]
[1625584368953,0.96779286,33899.0,33898.0,0.68791557]
[1625584369492,0.96779286,33899.0,33898.0,0.51460877]
[1625584369972,0.96779286,33899.0,33898.0,0.68791537]
[1625584370212,0.96779286,33899.0,33898.0,0.51460877]
[1625584370390,0.96779286,33899.0,33898.0,0.6879301]
[1625584372074,0.64341891,33899.0,33898.0,1.03457425]
[1625584372915,0.48115088,33899.0,33898.0,1.03457425]
[1625584373038,0.64346769,33899.0,33898.0,1.03457425]
[1625584373457,0.64346769,33899.0,33898.0,0.6879301]
[1625584373458,0.96789446,33899.0,33898.0,0.6879301]
[1625584374178,0.96789446,33899.0,33898.0,1.03461173]
[1625584374720,0.48674358,33899.0,33898.0,1.03461173]
[1625584374962,0.72797746,33903.0,33898.0,3.46135783]
[1625584375201,0.24057544,33903.0,33902.0,0.6934324]
[1625584375320,0.24057544,33903.0,33902.0,0.7817324]
[1625584375440,0.24057544,33903.0,33902.0,0.78575523]
[1625584375562,0.24057544,33903.0,33902.0,1.30583888]
[1625584376165,0.24057544,33903.0,33902.0,0.85298192]
[1625584376344,0.24057544,33903.0,33902.0,1.54643254]
[1625584377123,0.24057544,33903.0,33902.0,2.58655263]
[1625584377551,0.16737544,33903.0,33902.0,2.58655263]
[1625584377845,0.15907544,33903.0,33902.0,3.80017274]
[1625584377963,0.4882008,33907.0,33902.0,3.80017274]
[1625584378084,0.4882008,33907.0,33906.0,1.45419384]
[1625584378204,0.4882008,33907.0,33906.0,1.76641384]
[1625584378324,0.72887729,33908.0,33906.0,1.76641384]
[1625584378444,0.72887729,33908.0,33906.0,6.88913585]
[1625584378566,0.72887729,33908.0,33907.0,0.86667833]
[1625584378686,0.72887729,33908.0,33907.0,0.87070034]
[1625584378805,0.72887729,33908.0,33907.0,0.52402939]
[1625584379047,1.05428227,33908.0,33907.0,0.52420339]
[1625584379285,0.48833732,33908.0,33907.0,0.52420339]
[1625584379407,0.41533732,33908.0,33907.0,0.52420339]
[1625584379525,0.45946599,33910.0,33907.0,2.25803467]
[1625584379644,0.45946599,33910.0,33908.0,1.0]
[1625584379765,0.89194251,33912.0,33909.0,0.78110811]
[1625584379884,0.54914251,33912.0,33909.0,0.78110811]
[1625584380007,0.54914251,33912.0,33910.0,0.00402136]
[1625584380127,0.54914251,33912.0,33911.0,0.48115088]
[1625584380371,0.97737552,33914.0,33911.0,0.48115088]
[1625584380605,0.97737552,33914.0,33911.0,0.48517214]
[1625584380846,0.24057544,33917.0,33911.0,0.48517214]
[1625584380847,1.21761518,33915.0,33912.0,0.00402111]
[1625584380967,1.21761518,33915.0,33913.0,0.0883]
[1625584381087,1.21761518,33915.0,33913.0,0.41715]
[1625584381447,1.21761518,33915.0,33914.0,0.00402109]
[1625584382052,2.35686985,33915.0,33914.0,0.00402109]
[1625584382173,2.372,33915.0,33912.0,0.24459715]
[1625584382291,2.63951,33915.0,33912.0,0.24459715]
[1625584382411,2.63951,33915.0,33912.0,0.24057544]
[1625584382412,2.11439728,33913.0,33912.0,0.24057544]
[1625584382531,7.03569728,33913.0,33912.0,0.24057544]
[1625584382773,7.03569728,33913.0,33911.0,0.24057544]
[1625584382774,8.34933655,33913.0,33911.0,0.24057544]
[1625584383014,9.80864442,33913.0,33911.0,0.24057544]
[1625584383254,0.0151314,33912.0,33911.0,0.24057544]
[1625584383375,3.42162505,33912.0,33911.0,0.24057544]
[1625584384097,3.66220049,33912.0,33911.0,0.24057544]
[1625584387343,3.64706909,33912.0,33911.0,0.24057544]
[1625584387826,2.34938039,33912.0,33911.0,0.24057544]
[1625584388005,1.21388251,33912.0,33911.0,0.24057544]
[1625584388245,0.97330707,33912.0,33911.0,0.24459721]
[1625584388367,0.95800707,33912.0,33911.0,0.46896721]
[1625584388487,1.53958684,33915.0,33911.0,0.46896721]
[1625584388488,1.13709533,33914.0,33911.0,0.46896721]
[1625584388727,1.3780627,33915.0,33911.0,0.46896721]
[1625584388966,0.24057544,33915.0,33912.0,0.00402061]
[1625584389086,1.13758532,33916.0,33913.0,0.088]
[1625584389569,1.13758532,33916.0,33914.0,0.00402044]
[1625584389691,1.13727005,33917.0,33914.0,0.00402044]
[1625584389810,1.13727005,33917.0,33913.0,0.088]
[1625584390231,1.13727005,33917.0,33916.0,0.48115088]
[1625584390653,1.13755171,33918.0,33916.0,0.48115088]
[1625584390772,1.13755171,33918.0,33917.0,0.0874]
[1625584391012,1.13755171,33918.0,33916.0,0.48115088]
[1625584391673,1.13489148,33917.0,33916.0,0.48115088]
[1625584392393,2.43091197,33917.0,33916.0,0.48115088]
[1625584396480,1.13489148,33917.0,33916.0,0.48115088]
[1625584396723,1.13760966,33918.0,33916.0,0.48115088]
[1625584396839,1.13760966,33918.0,33916.0,0.69798088]
[1625584397200,1.13780168,33919.0,33916.0,0.69798088]
[1625584398280,1.13780168,33919.0,33918.0,0.24057544]
[1625584401052,2.43727147,33919.0,33918.0,0.24057544]
[1625584402491,1.13780168,33919.0,33918.0,0.24057544]
[1625584402610,1.13780168,33919.0,33918.0,0.52184544]
[1625584405552,1.13904524,33920.0,33918.0,0.52184544]
[1625584409103,1.541849,33922.0,33918.0,0.52184544]
[1625584409104,1.13873112,33921.0,33918.0,0.52184544]
[1625584410304,1.13873112,33921.0,33920.0,0.24057544]
[1625584410786,1.15385393,33921.0,33920.0,0.24057544]
[1625584415712,2.45509903,33921.0,33920.0,0.24057544]
[1625584415832,2.76958903,33921.0,33920.0,0.24057544]
[1625584418421,3.01016447,33921.0,33920.0,0.24057544]
[1625584418542,3.98553541,33921.0,33920.0,0.24057544]
[1625584420588,5.44885664,33921.0,33920.0,0.24057544]
[1625584422751,3.98553541,33921.0,33920.0,0.24057544]
[1625584423595,5.44943035,33921.0,33920.0,0.24057544]
[1625584431526,5.44943035,33921.0,33916.0,0.24057544]
[1625584431646,5.44943035,33921.0,33911.0,0.08662206]
[1625584431766,5.44943035,33921.0,33905.0,1.38746526]
[1625584431767,4.89963534,33917.0,33910.0,0.08672522]
[1625584432007,4.89963534,33917.0,33905.0,1.21415304]
[1625584432008,2.12198227,33911.0,33908.0,0.08672903]
[1625584432129,2.39067227,33911.0,33908.0,0.08672903]
[1625584432248,2.39067227,33911.0,33904.0,0.9481]
[1625584432249,0.97931716,33909.0,33907.0,0.08672986]
[1625584432368,5.2476,33908.0,33907.0,0.08672986]
[1625584432490,6.22728822,33908.0,33905.0,1.04124105]
[1625584432608,6.22728822,33908.0,33907.0,0.24057544]
[1625584432969,6.22728822,33908.0,33907.0,0.32734577]
[1625584432970,7.37001392,33908.0,33907.0,0.32734577]
[1625584433088,7.37001392,33908.0,33907.0,0.33136836]
[1625584433931,6.22728822,33908.0,33907.0,0.24459803]
[1625584434348,7.36994259,33908.0,33907.0,0.33136644]
[1625584434832,7.36994259,33908.0,33907.0,0.24459803]
[1625584435192,2.12234259,33908.0,33907.0,0.24459803]
[1625584435314,2.12234259,33908.0,33907.0,0.33141489]
[1625584436695,2.12234259,33908.0,33907.0,0.24459803]
[1625584437474,0.97968822,33908.0,33907.0,0.24459803]
[1625584440125,0.97968822,33908.0,33907.0,0.93909616]
[1625584440126,1.63177569,33908.0,33907.0,0.93909616]
[1625584441024,3.02332217,33908.0,33907.0,0.24459803]
[1625584441264,3.02332217,33908.0,33907.0,0.33141153]
[1625584441503,1.88266569,33908.0,33907.0,0.24459803]
[1625584442525,3.02383017,33908.0,33907.0,0.24459803]
[1625584444688,3.02383017,33908.0,33907.0,0.33141491]
[1625584445591,4.32926717,33908.0,33907.0,0.33141491]
[1625584445830,4.32926717,33908.0,33907.0,0.24459803]
[1625584446075,3.02383017,33908.0,33907.0,0.33142495]
[1625584446795,4.32938915,33908.0,33907.0,0.24459803]
[1625584447032,4.32938915,33908.0,33907.0,0.24057544]
[1625584447214,4.32938915,33908.0,33907.0,0.24459874]
[1625584447332,4.32938915,33908.0,33907.0,0.33349874]
[1625584447573,4.32938915,33908.0,33907.0,0.33752171]
[1625584447574,3.02383017,33908.0,33907.0,0.33752171]
[1625584447753,3.02383017,33908.0,33907.0,0.34154461]
[1625584447993,1.88266569,33908.0,33907.0,0.34154461]
[1625584448236,2.77464373,33908.0,33907.0,0.34154461]
[1625584448655,1.63177569,33908.0,33907.0,0.34154461]
[1625584449860,1.63177569,33908.0,33907.0,1.03597638]
[1625584450100,1.63177569,33908.0,33907.0,0.34154461]
[1625584450521,1.63177569,33908.0,33907.0,1.03597865]
[1625584450645,1.61637569,33908.0,33907.0,1.03597865]
[1625584451065,1.30651362,33912.0,33907.0,2.25112175]
[1625584451066,0.65371088,33909.0,33907.0,2.25112175]
[1625584451246,0.65371088,33909.0,33908.0,0.69436252]
[1625584451364,0.65371088,33909.0,33908.0,0.69838493]
[1625584452806,0.65379831,33910.0,33908.0,0.69838493]
[1625584452988,0.65338936,33909.0,33908.0,0.69838493]
[1625584460679,0.56438936,33909.0,33908.0,0.69838493]
[1625584463082,0.56438936,33909.0,33908.0,0.00402241]
[1625584463203,1.70753714,33909.0,33908.0,0.00402241]
[1625584463442,1.72266803,33909.0,33908.0,0.00402241]
[1625584464584,1.70753714,33909.0,33908.0,0.00402241]
[1625584464706,0.56438936,33909.0,33908.0,0.00402241]
[1625584468911,0.56438936,33909.0,33908.0,0.32129241]
[1625584469871,1.05496137,33909.0,33908.0,0.84228911]
[1625584470652,2.21380023,33909.0,33908.0,0.84228911]
[1625584470951,2.21380023,33909.0,33908.0,0.32129241]
[1625584471073,2.21380023,33909.0,33908.0,0.00402241]
[1625584471733,3.52074401,33909.0,33908.0,0.00402241]
[1625584472455,3.52074401,33909.0,33908.0,0.09087488]
[1625584473180,3.52074401,33909.0,33908.0,0.00402241]
[1625584479069,3.76131945,33909.0,33908.0,0.00402241]
[1625584480748,4.74063103,33909.0,33908.0,0.00402241]
[1625584481351,4.74063103,33909.0,33908.0,0.09090659]
[1625584482074,4.74063103,33909.0,33908.0,0.00402241]
[1625584482795,4.74063103,33909.0,33908.0,0.09091049]
[1625584483277,4.74063103,33909.0,33908.0,0.00402241]
[1625584483516,4.74063103,33909.0,33908.0,0.09091139]
[1625584484662,4.74063103,33909.0,33908.0,0.00402241]
[1625584486224,4.74063103,33909.0,33908.0,0.52543893]
[1625584486464,4.74063103,33909.0,33908.0,0.00402241]
[1625584486886,4.74063103,33909.0,33908.0,0.52543744]
[1625584489772,4.74063103,33909.0,33908.0,0.00402241]
[1625584490013,4.74063103,33909.0,33908.0,0.52558905]
[1625584497407,4.74063103,33909.0,33908.0,0.00402241]
[1625584498546,4.74063103,33909.0,33908.0,0.52566736]
[1625584499750,4.74063103,33909.0,33908.0,0.87342882]
[1625584500590,4.74063103,33909.0,33908.0,0.43872499]
[1625584500771,4.74063103,33909.0,33908.0,0.35178387]
[1625584501311,4.74063103,33909.0,33908.0,0.87342912]
[1625584501431,4.74063103,33909.0,33908.0,0.35178387]
[1625584501971,4.74063103,33909.0,33908.0,0.4387264]
[1625584502212,4.74063103,33909.0,33908.0,0.35178387]
[1625584503173,4.74063103,33909.0,33907.0,0.76222402]
[1625584503174,4.74063103,33909.0,33907.0,0.0869449]
[1625584503294,6.21222377,33909.0,33907.0,0.0869449]
[1625584503413,6.21222377,33909.0,33906.0,0.27081427]
[1625584503654,4.0392,33905.0,33904.0,0.81405302]
[1625584503773,4.79602,33905.0,33904.0,0.81405302]
[1625584503897,4.79602,33905.0,33894.0,0.24057544]
[1625584503898,4.79602,33905.0,33899.0,1.0434736]
[1625584504134,3.91207824,33900.0,33894.0,0.24057544]
[1625584504255,4.41207824,33900.0,33894.0,0.24057544]
[1625584504379,2.44446625,33895.0,33891.0,0.24057544]
[1625584504496,2.75103625,33895.0,33890.0,1.21753477]
[1625584504617,2.75103625,33895.0,33888.0,1.63204375]
[1625584504618,2.75103625,33895.0,33888.0,1.4564795]
[1625584504734,4.1585,33891.0,33888.0,1.4564795]
[1625584504975,4.1585,33891.0,33889.0,0.00400884]
[1625584505578,0.48115088,33890.0,33889.0,0.00400884]
[1625584509899,0.48115088,33890.0,33888.0,0.24057544]
[1625584514113,0.48115088,33890.0,33889.0,0.0897]
[1625584514232,0.48115088,33890.0,33889.0,0.2424]
[1625584514352,0.48115088,33890.0,33889.0,0.24640773]
[1625584514595,0.42345088,33890.0,33889.0,0.24640773]
[1625584514775,0.18287544,33890.0,33889.0,1.45889628]
[1625584514895,0.24057544,33891.0,33889.0,1.45889628]
[1625584515015,0.24057544,33891.0,33890.0,1.2123979]
[1625584515134,1.14260367,33901.0,33890.0,1.2123979]
[1625584515255,1.14285562,33902.0,33891.0,1.2123827]
[1625584515375,1.14285562,33902.0,33892.0,0.0896]
[1625584515497,1.14375383,33904.0,33894.0,1.21230305]
[1625584515734,0.24057544,33898.0,33897.0,0.24057544]
[1625584515853,0.24057544,33898.0,33897.0,0.50424544]
[1625584516277,0.24057544,33898.0,33897.0,5.37724544]
[1625584516634,1.14408193,33904.0,33897.0,5.37724544]
[1625584516756,0.24057544,33905.0,33897.0,5.37724544]
[1625584516877,0.24057544,33905.0,33897.0,5.38125614]
[1625584517114,0.24057544,33905.0,33897.0,5.37724544]
[1625584517234,0.24057544,33905.0,33897.0,6.6792027]
[1625584517235,0.23317544,33905.0,33897.0,6.6792027]
[1625584517354,0.14877544,33905.0,33898.0,0.00401042]
[1625584517475,0.14877544,33905.0,33898.0,1.21621216]
[1625584517716,1.38555584,33909.0,33904.0,0.48115088]
[1625584517834,1.38555584,33909.0,33904.0,0.71685088]
[1625584517954,1.14498925,33908.0,33904.0,0.71685088]
[1625584519158,1.3850786,33909.0,33904.0,0.71685088]
[1625584519638,0.24057544,33909.0,33904.0,0.71685088]
[1625584519759,0.24057544,33909.0,33908.0,0.24057544]
[1625584519880,0.24057544,33909.0,33908.0,4.99147544]
[1625584521323,0.89505259,33909.0,33908.0,4.99147544]
[1625584523249,0.65447715,33909.0,33908.0,4.99147544]
[1625584523429,0.46299201,33910.0,33908.0,4.99147544]
[1625584523669,1.14697885,33915.0,33908.0,4.99147544]
[1625584523788,1.14697885,33915.0,33914.0,0.24057544]
[1625584523909,0.24057544,33916.0,33914.0,0.49706544]
[1625584523910,1.38757888,33916.0,33914.0,0.49706544]
[1625584524509,0.24057544,33916.0,33914.0,0.49706544]
[1625584524628,1.14692962,33917.0,33914.0,0.49706544]
[1625584524749,1.14741942,33918.0,33914.0,0.49706544]
[1625584524868,1.14741942,33918.0,33915.0,1.0]
[1625584524990,1.14826656,33919.0,33915.0,1.0]
[1625584525230,1.14958565,33922.0,33915.0,1.0]
[1625584525468,1.14958565,33922.0,33914.0,0.58536544]
[1625584525469,1.14984647,33923.0,33916.0,1.0]
[1625584525828,1.47832711,33928.0,33922.0,0.72172632]
[1625584525949,1.46662711,33928.0,33922.0,0.96875632]
[1625584526069,1.64256743,33933.0,33922.0,0.96875632]
[1625584526191,0.24057544,33937.0,33922.0,1.96875632]
[1625584526432,0.08627544,33937.0,33922.0,1.96875632]
[1625584526670,2.63525111,33962.0,33922.0,1.96875632]
[1625584526671,1.6452478,33945.0,33922.0,1.96875632]
[1625584526790,1.6452478,33945.0,33927.0,1.0]
[1625584526912,1.64549601,33946.0,33927.0,1.0]
[1625584527150,0.23367544,33941.0,33932.0,1.0]
[1625584527272,1.64549601,33946.0,33932.0,1.21894]
[1625584527392,1.64880258,33949.0,33945.0,4.1326]
[1625584527512,1.64880258,33949.0,33945.0,4.36146]
[1625584527632,1.6509688,33954.0,33945.0,4.36146]
[1625584527752,0.24057544,33953.0,33952.0,0.24057544]
[1625584527872,0.24057544,33953.0,33952.0,0.53532544]
[1625584527992,0.24057544,33953.0,33952.0,0.29475]
[1625584533048,0.24057544,33953.0,33950.0,0.24057544]
[1625584534430,0.98873406,33951.0,33950.0,0.24057544]
[1625584534552,0.98873406,33951.0,33946.0,0.24057544]
[1625584534671,1.31198406,33951.0,33928.0,0.25898746]
[1625584534849,0.98873281,33947.0,33928.0,0.0872]
[1625584534978,0.32325,33951.0,33928.0,0.0872]
[1625584534980,0.1646826,33941.0,33928.0,0.0872]
[1625584535091,0.3975226,33941.0,33928.0,0.0872]
[1625584535225,0.23284,33941.0,33928.0,0.0872]
[1625584535339,0.23284,33941.0,33925.0,0.9897]
[1625584535467,0.39744462,33941.0,33925.0,0.9897]
[1625584535706,0.16439684,33937.0,33925.0,0.9897]
[1625584535820,0.16439684,33937.0,33933.0,0.24057544]
[1625584535821,0.24057544,33934.0,33933.0,0.24057544]
[1625584538100,0.24057544,33934.0,33933.0,0.32927544]
[1625584538232,0.18467544,33934.0,33933.0,0.32927544]
[1625584538699,0.18467544,33934.0,33933.0,0.24057544]
[1625584539719,0.18467544,33934.0,33933.0,0.32907544]
[1625584539959,0.11267544,33934.0,33933.0,0.32907544]
[1625584540080,0.24057544,33943.0,33933.0,0.32907544]
[1625584540200,0.24057544,33943.0,33933.0,0.65069544]
[1625584540320,0.04857544,33943.0,33933.0,0.65069544]
[1625584540560,0.04857544,33943.0,33933.0,1.65069544]
[1625584540743,0.04857544,33943.0,33942.0,4.4696]
[1625584540860,0.04857544,33943.0,33942.0,4.77801]
[1625584541886,0.04857544,33943.0,33942.0,5.25916088]
[1625584542244,0.04857544,33943.0,33942.0,0.78956088]
[1625584543564,0.24057544,33946.0,33942.0,0.78956088]
[1625584545432,0.24057544,33946.0,33942.0,0.48115088]
[1625584546092,0.40512393,33946.0,33942.0,0.71044088]
[1625584546331,0.24057544,33946.0,33942.0,0.71044088]
[1625584549874,0.40519889,33951.0,33942.0,0.71044088]
[1625584550013,0.40519889,33951.0,33950.0,0.48115088]
[1625584550014,0.24057544,33951.0,33950.0,0.48115088]
[1625584550115,0.24057544,33951.0,33950.0,0.89587088]
[1625584550234,0.24057544,33951.0,33950.0,0.80647088]
[1625584552579,0.24057544,33951.0,33950.0,0.89397088]
[1625584552700,0.24057544,33951.0,33950.0,0.80647088]
[1625584553728,0.95918381,33960.0,33950.0,0.89487088]
[1625584553845,0.95918381,33960.0,33951.0,0.5]
[1625584553963,4.30434075,34008.0,33959.0,1.72172632]
[1625584553964,0.82701787,33963.0,33959.0,1.72172632]
[1625584554089,0.24057544,33992.0,33959.0,1.72172632]
[1625584554090,0.24057544,33992.0,33959.0,2.06422632]
[1625584554091,0.05210413,33964.0,33959.0,2.06422632]
[1625584554324,1.48281926,33974.0,33959.0,2.06422632]
[1625584554325,0.16542727,33975.0,33964.0,5.1056]
[1625584554682,0.95166459,33978.0,33964.0,5.1056]
[1625584554805,0.54246459,33978.0,33964.0,5.1056]
[1625584554923,1.21699933,33979.0,33964.0,5.1056]
[1625584554925,0.01515642,33974.0,33964.0,5.1056]
[1625584555042,1.15776365,33982.0,33964.0,5.1056]
[1625584555162,0.0151256,33977.0,33964.0,5.1056]
[1625584555402,0.01508037,33981.0,33965.0,0.09192373]
[1625584555522,0.01508037,33981.0,33966.0,1.0]
[1625584555644,0.01508037,33981.0,33966.0,1.29317]
[1625584555764,0.01508037,33981.0,33966.0,1.2971934]
[1625584555887,0.01508037,33981.0,33966.0,0.2971934]
[1625584556004,1.16354493,33985.0,33980.0,0.96230176]
[1625584556127,1.16354493,33985.0,33980.0,1.26061176]
[1625584556608,1.16989602,33987.0,33980.0,1.26061176]
[1625584557086,0.01507931,33986.0,33980.0,1.26061176]
[1625584557208,1.17202915,33985.0,33980.0,1.26061176]
[1625584557328,4.3517,33981.0,33980.0,1.26061176]
[1625584557446,4.3517,33981.0,33966.0,0.29317]
[1625584558053,0.24057544,33970.0,33969.0,0.24057544]
[1625584562080,0.48115088,33970.0,33966.0,0.24057544]
[1625584564005,0.24057544,33968.0,33966.0,0.24057544]
[1625584564131,0.24057544,33968.0,33962.0,0.24057544]
[1625584564372,0.24057544,33968.0,33953.0,0.24057544]
[1625584565264,5.1888,33963.0,33953.0,0.24057544]
[1625584565805,0.31545,33965.0,33953.0,0.24057544]
[1625584565922,0.31545,33965.0,33953.0,0.58882544]
[1625584566044,0.24057544,33954.0,33953.0,0.58882544]
[1625584566165,0.24057544,33956.0,33953.0,0.58882544]
[1625584568085,0.24057544,33956.0,33954.0,0.24057544]
[1625584570731,0.24057544,33956.0,33955.0,0.0884]
[1625584571634,0.24057544,33963.0,33955.0,0.0884]
[1625584572116,0.16857544,33963.0,33962.0,0.48115088]
[1625584572236,0.16857544,33963.0,33962.0,0.82580088]
[1625584573678,0.16857544,33963.0,33962.0,0.91460088]
[1625584573918,0.24057544,33968.0,33962.0,0.91460088]
[1625584574158,0.24057544,33968.0,33967.0,0.24057544]
[1625584574277,0.24057544,33968.0,33967.0,0.32917544]
[1625584574818,0.24057544,33976.0,33967.0,0.32917544]
[1625584575179,0.04857544,33976.0,33967.0,0.32917544]
[1625584575298,0.24057544,33979.0,33967.0,0.32917544]
[1625584576143,0.24057544,33979.0,33978.0,0.48115088]
[1625584576263,1.2270068,33985.0,33978.0,0.74969088]
[1625584576383,1.18091842,33987.0,33978.0,0.74969088]
[1625584576505,1.18091842,33987.0,33978.0,0.78119088]
[1625584576624,1.35112751,33994.0,33978.0,0.78119088]
[1625584576742,1.35112751,33994.0,33979.0,1.0]
[1625584576864,1.35263637,33997.0,33979.0,1.0]
[1625584577102,1.35263637,33997.0,33982.0,1.0]
[1625584577231,2.36681779,34017.0,33982.0,1.0]
[1625584577234,1.35329403,33998.0,33982.0,1.0]
[1625584577475,1.35329403,33998.0,33978.0,0.74969088]
[1625584577476,0.20296873,34012.0,33978.0,0.74969088]
[1625584577478,1.35414562,34000.0,33979.0,0.0877]
[1625584577586,1.35414562,34000.0,33985.0,1.0]
[1625584577707,1.3543558,34001.0,33985.0,1.25749]
[1625584577826,1.3543558,34001.0,33986.0,1.0]
[1625584577949,1.35480615,34003.0,33986.0,1.0]
[1625584578066,1.35480615,34003.0,33985.0,0.25749]
[1625584578186,0.24057544,34001.0,33999.0,0.24057544]
[1625584578307,0.24057544,34001.0,33999.0,0.49968544]
[1625584579267,0.24057544,34004.0,33999.0,0.49968544]
[1625584579391,1.35463643,34005.0,33999.0,0.49968544]
[1625584579508,0.24057544,34007.0,33999.0,0.49968544]
[1625584579869,0.24057544,34007.0,33999.0,1.49968544]
[1625584579993,1.35754026,34012.0,33999.0,1.49968544]
[1625584580110,1.35754026,34012.0,33999.0,0.49968544]
[1625584580229,0.25,34019.0,33999.0,0.49968544]
[1625584580230,1.35536192,34016.0,34011.0,0.96644632]
[1625584580472,0.35426192,34016.0,34011.0,0.96644632]
[1625584580589,0.25,34019.0,34011.0,0.96644632]
[1625584580715,0.25,34019.0,34013.0,1.0]
[1625584580955,0.25,34019.0,34011.0,0.99794632]
[1625584581316,0.25,34019.0,34011.0,0.96644632]
[1625584581794,0.25,34019.0,34011.0,1.05484632]
[1625584581913,0.25,34019.0,34011.0,0.96644632]
[1625584582154,0.24057544,34018.0,34017.0,0.24057544]
[1625584582273,0.25,34019.0,34017.0,0.24057544]
[1625584582754,0.059,34019.0,34017.0,0.24057544]
[1625584582997,0.059,34019.0,34018.0,1.0]
[1625584583117,0.059,34019.0,34017.0,0.24057544]
[1625584583660,0.059,34019.0,34018.0,0.0888]
[1625584583777,0.059,34019.0,34018.0,0.23548]
[1625584584259,0.91979272,34032.0,34018.0,0.71663088]
[1625584584260,0.24057544,34032.0,34018.0,0.71663088]
[1625584584380,0.24057544,34032.0,34018.0,1.71663088]
[1625584584740,0.24057544,34032.0,34021.0,1.0]
[1625584585223,0.24057544,34032.0,34023.0,1.0]
[1625584585460,0.24057544,34032.0,34022.0,1.0]
[1625584585701,0.24057544,34032.0,34019.0,0.0869]
[1625584585821,0.24057544,34032.0,34023.0,1.0]
[1625584586062,0.24057544,34032.0,34022.0,1.0]
[1625584586181,0.24057544,34032.0,34031.0,0.24057544]